[Event "*** Titled Tuesday Blitz"]
[Site "Chess.com"]
[Date "2019.02.05"]
[Round "1"]
[White "volcanoexplorer"]
[Black "tigra"]
[Result "0-1"]
[WhiteElo "2365"]
[BlackElo "2755"]
[TimeControl "180+2"]
[EndTime "13:07:57 PST"]
[Termination "tigra won by resignation"]

1. e4 {[%clk 0:03:01.9]} 1... e5 {[%clk 0:02:59.6]} 2. Nf3 {[%clk 0:03:03.1]}
2... Nc6 {[%clk 0:03:00.1]} 3. Bc4 {[%clk 0:03:04.1]} 3... Nf6 {[%clk
0:02:59.9]} 4. d3 {[%clk 0:03:04.1]} 4... Bc5 {[%clk 0:02:59.7]} 5. O-O {[%clk
0:03:04.8]} 5... d6 {[%clk 0:03:00.4]} 6. c3 {[%clk 0:03:05.8]} 6... a6 {[%clk
0:03:00.9]} 7. Bb3 {[%clk 0:03:06.6]} 7... Ba7 {[%clk 0:03:01.1]} 8. Re1 {[%clk
0:03:07.3]} 8... O-O {[%clk 0:03:01.5]} 9. h3 {[%clk 0:03:08.3]} 9... Ne7 {[%clk
0:03:01.6]} 10. Nbd2 {[%clk 0:03:08.4]} 10... Ng6 {[%clk 0:03:01.7]} 11. Nf1
{[%clk 0:03:09.6]} 11... Kh8 {[%clk 0:03:02.3]} 12. Ng3 {[%clk 0:03:09]} 12...
Be6 {[%clk 0:03:02.3]} 13. Be3 {[%clk 0:03:06.7]} 13... Bxb3 {[%clk 0:03:01.3]}
14. Qxb3 {[%clk 0:03:04.7]} 14... Bxe3 {[%clk 0:03:01.4]} 15. fxe3 {[%clk
0:03:02.8]} 15... Rb8 {[%clk 0:03:00.5]} 16. Nf5 {[%clk 0:02:42.9]} 16... Ne7
{[%clk 0:02:59.2]} 17. Rf1 {[%clk 0:02:32.8]} 17... Nxf5 {[%clk 0:02:58.5]} 18.
exf5 {[%clk 0:02:34.7]} 18... e4 {[%clk 0:02:55.3]} 19. Ng5 {[%clk 0:02:11.8]}
19... Qe7 {[%clk 0:02:54.9]} 20. dxe4 {[%clk 0:02:08.3]} 20... Nxe4 {[%clk
0:02:43.2]} 21. Nxe4 {[%clk 0:02:04.3]} 21... Qxe4 {[%clk 0:02:45.1]} 22. Rae1
{[%clk 0:02:05.2]} 22... f6 {[%clk 0:02:42.6]} 23. Rf4 {[%clk 0:02:04.5]} 23...
Qe5 {[%clk 0:02:43.2]} 24. Qc4 {[%clk 0:02:03.4]} 24... c6 {[%clk 0:02:37.7]}
25. Qd3 {[%clk 0:01:53.2]} 25... Rf7 {[%clk 0:02:34.6]} 26. Re4 {[%clk
0:01:52.8]} 26... Qc5 {[%clk 0:02:26.1]} 27. Rc4 {[%clk 0:01:45.4]} 27... Qb5
{[%clk 0:02:22.4]} 28. Qxd6 {[%clk 0:01:37.5]} 28... Rg8 {[%clk 0:02:16.9]} 29.
Qe6 {[%clk 0:01:28]} 29... Rff8 {[%clk 0:02:16.8]} 30. Rb4 {[%clk 0:01:27.8]}
30... Qd3 {[%clk 0:02:16.1]} 31. Rxb7 {[%clk 0:01:22.2]} 31... Re8 {[%clk
0:02:14.2]} 32. Qd7 {[%clk 0:00:58.5]} 32... Qc2 {[%clk 0:02:14.4]} 33. Rb4
{[%clk 0:00:46.3]} 33... c5 {[%clk 0:02:08.7]} 34. Rh4 {[%clk 0:00:26.3]} 34...
Rd8 {[%clk 0:02:08.4]} 35. Qf7 {[%clk 0:00:26.6]} 35... Qxf5 {[%clk 0:02:08.2]}
36. e4 {[%clk 0:00:26.5]} 36... Qg5 {[%clk 0:02:08.7]} 37. Rg4 {[%clk
0:00:26.5]} 37... Qd2 {[%clk 0:02:06.6]} 38. Rf1 {[%clk 0:00:27.7]} 38... Qxb2
{[%clk 0:02:04.4]} 39. Rxf6 {[%clk 0:00:27.2]} 39... Qxc3 {[%clk 0:01:59]} 40.
Rf1 {[%clk 0:00:19.8]} 40... c4 {[%clk 0:01:59.3]} 41. Rh4 {[%clk 0:00:20]}
41... Qe3+ {[%clk 0:01:57]} 42. Kh1 {[%clk 0:00:20.6]} 42... c3 {[%clk
0:01:56.4]} 43. Qf5 {[%clk 0:00:20.4]} 43... h6 {[%clk 0:01:54.6]} 44. e5 {[%clk
0:00:21.8]} 44... Qd2 {[%clk 0:01:46.9]} 45. e6 {[%clk 0:00:19.9]} 45... c2
{[%clk 0:01:46.1]} 46. e7 {[%clk 0:00:21.2]} 46... Rc8 {[%clk 0:01:27.8]} 47.
Qxc8 {[%clk 0:00:19.1]} 47... Rxc8 {[%clk 0:01:27.2]} 48. Rf8+ {[%clk
0:00:19.8]} 48... Kh7 {[%clk 0:01:28.3]} 49. Rxc8 {[%clk 0:00:20.7]} 49... c1=Q+
{[%clk 0:01:29]} 50. Rxc1 {[%clk 0:00:21.6]} 50... Qxc1+ {[%clk 0:01:29.9]} 51.
Kh2 {[%clk 0:00:23.1]} 51... Qc7+ {[%clk 0:01:31.5]} 52. g3 {[%clk 0:00:24.3]}
52... Qxe7 {[%clk 0:01:32.9]} 53. Rf4 {[%clk 0:00:25]} 53... Qe2+ {[%clk
0:01:33]} 0-1

[Event "*** Titled Tuesday Blitz"]
[Site "Chess.com"]
[Date "2019.02.05"]
[Round "1"]
[White "popov_m"]
[Black "twitchTriniCupid"]
[Result "1-0"]
[WhiteElo "2611"]
[BlackElo "2248"]
[TimeControl "180+2"]
[EndTime "13:07:58 PST"]
[Termination "popov_m won by resignation"]

1. e4 {[%clk 0:03:01.9]} 1... c6 {[%clk 0:03:01]} 2. d4 {[%clk 0:03:02.8]} 2...
d5 {[%clk 0:03:02.9]} 3. e5 {[%clk 0:03:02.5]} 3... Bf5 {[%clk 0:03:03.6]} 4. h4
{[%clk 0:03:03.5]} 4... h6 {[%clk 0:03:04]} 5. g4 {[%clk 0:02:56.8]} 5... Bd7
{[%clk 0:03:04.7]} 6. Be3 {[%clk 0:02:58.4]} 6... c5 {[%clk 0:02:41.5]} 7. dxc5
{[%clk 0:02:58.2]} 7... Qc8 {[%clk 0:02:41.3]} 8. Nc3 {[%clk 0:02:43.1]} 8... e6
{[%clk 0:02:35.1]} 9. Nb5 {[%clk 0:02:40.5]} 9... a6 {[%clk 0:02:09.5]} 10. Nd6+
{[%clk 0:02:30.5]} 10... Bxd6 {[%clk 0:02:10.3]} 11. cxd6 {[%clk 0:02:32.1]}
11... Nc6 {[%clk 0:02:08.8]} 12. f4 {[%clk 0:02:33.3]} 12... d4 {[%clk
0:02:07.3]} 13. Bd2 {[%clk 0:02:30.8]} 13... f6 {[%clk 0:02:01.4]} 14. Nf3
{[%clk 0:02:29.9]} 14... Nd8 {[%clk 0:01:40.1]} 15. Bd3 {[%clk 0:02:27.8]} 15...
Nf7 {[%clk 0:01:31.6]} 16. Qe2 {[%clk 0:02:25.2]} 16... Qc5 {[%clk 0:01:31.1]}
17. a4 {[%clk 0:02:10.8]} 17... Rc8 {[%clk 0:01:23]} 18. O-O {[%clk 0:02:04.1]}
18... h5 {[%clk 0:00:55.3]} 19. g5 {[%clk 0:01:56.6]} 19... f5 {[%clk
0:00:56.5]} 20. Bxf5 {[%clk 0:01:52.8]} 20... exf5 {[%clk 0:00:53.7]} 21. b4
{[%clk 0:01:33.5]} 21... Qxc2 {[%clk 0:00:18.8]} 22. e6 {[%clk 0:01:31.7]} 22...
Qe4 {[%clk 0:00:19.6]} 23. exf7+ {[%clk 0:01:24.8]} 23... Kxf7 {[%clk
0:00:18.9]} 24. Ne5+ {[%clk 0:01:26.5]} 24... Ke6 {[%clk 0:00:19.2]} 25. Qf2
{[%clk 0:01:21.6]} 25... Rc2 {[%clk 0:00:17.9]} 26. Rfe1 {[%clk 0:01:19.2]}
26... Qd5 {[%clk 0:00:17.2]} 27. Ng6+ {[%clk 0:01:10]} 27... Kf7 {[%clk
0:00:18.3]} 28. Nxh8+ {[%clk 0:01:11.1]} 28... Kf8 {[%clk 0:00:19.8]} 29. Ng6+
{[%clk 0:01:12.7]} 29... Kf7 {[%clk 0:00:21.1]} 30. Ne5+ {[%clk 0:01:14.4]}
30... Ke6 {[%clk 0:00:22.4]} 31. Nf3+ {[%clk 0:00:48.2]} 31... Kxd6 {[%clk
0:00:22.7]} 32. Nxd4 {[%clk 0:00:45.8]} 32... Rc4 {[%clk 0:00:20.5]} 33. Be3
{[%clk 0:00:40.8]} 33... Kc7 {[%clk 0:00:18.4]} 34. Rac1 {[%clk 0:00:39.7]}
34... Kb8 {[%clk 0:00:18.8]} 35. Rxc4 {[%clk 0:00:40.4]} 35... Qxc4 {[%clk
0:00:20.7]} 36. Nf3 {[%clk 0:00:40.1]} 36... Bxa4 {[%clk 0:00:18.3]} 37. Ba7+
{[%clk 0:00:38.9]} 37... Ka8 {[%clk 0:00:18.4]} 38. Qd4 {[%clk 0:00:39.2]} 38...
Qxd4+ {[%clk 0:00:19]} 39. Bxd4 {[%clk 0:00:39.4]} 1-0

[Event "*** Titled Tuesday Blitz"]
[Site "Chess.com"]
[Date "2019.02.05"]
[Round "1"]
[White "GMBenjaminBok"]
[Black "valeriocarnicelli"]
[Result "1-0"]
[WhiteElo "2856"]
[BlackElo "2434"]
[TimeControl "180+2"]
[EndTime "13:08:05 PST"]
[Termination "GMBenjaminBok won on time"]

1. d4 {[%clk 0:03:01.9]} 1... Nf6 {[%clk 0:03:00.6]} 2. c4 {[%clk 0:02:59.5]}
2... g6 {[%clk 0:03:01.2]} 3. g3 {[%clk 0:02:59.9]} 3... Bg7 {[%clk 0:03:01.9]}
4. Bg2 {[%clk 0:03:00.6]} 4... O-O {[%clk 0:03:00.2]} 5. Nf3 {[%clk 0:03:01.8]}
5... d6 {[%clk 0:02:59.7]} 6. Nc3 {[%clk 0:03:00.2]} 6... c6 {[%clk 0:03:00]} 7.
e4 {[%clk 0:02:57.1]} 7... e5 {[%clk 0:02:57]} 8. O-O {[%clk 0:02:56.9]} 8...
Nbd7 {[%clk 0:02:53.6]} 9. Be3 {[%clk 0:02:57.4]} 9... exd4 {[%clk 0:02:51.4]}
10. Nxd4 {[%clk 0:02:57.8]} 10... Re8 {[%clk 0:02:51.9]} 11. h3 {[%clk 0:02:51]}
11... Nc5 {[%clk 0:02:48.5]} 12. Qc2 {[%clk 0:02:51.4]} 12... a5 {[%clk
0:02:39]} 13. Rfe1 {[%clk 0:02:48.6]} 13... a4 {[%clk 0:02:36.1]} 14. Rad1
{[%clk 0:02:25.1]} 14... Nfd7 {[%clk 0:02:07.5]} 15. Rb1 {[%clk 0:01:50.3]}
15... Ne5 {[%clk 0:02:04.5]} 16. b4 {[%clk 0:01:47.1]} 16... axb3 {[%clk
0:02:04.3]} 17. axb3 {[%clk 0:01:48.2]} 17... Ncd3 {[%clk 0:01:48.1]} 18. Red1
{[%clk 0:01:48.3]} 18... Nb4 {[%clk 0:01:47.6]} 19. Qd2 {[%clk 0:01:19.8]} 19...
c5 {[%clk 0:01:43.1]} 20. Ndb5 {[%clk 0:01:17.9]} 20... Bxh3 {[%clk 0:01:41.5]}
21. Qxd6 {[%clk 0:01:12.2]} 21... Bxg2 {[%clk 0:01:29.9]} 22. Kxg2 {[%clk
0:01:10.4]} 22... Ned3 {[%clk 0:01:13.8]} 23. Bxc5 {[%clk 0:00:52.5]} 23... Qxd6
{[%clk 0:00:27]} 24. Bxd6 {[%clk 0:00:54.4]} 24... Bxc3 {[%clk 0:00:25.6]} 25.
Nxc3 {[%clk 0:00:54.6]} 25... Rad8 {[%clk 0:00:20.3]} 26. e5 {[%clk 0:00:55.4]}
26... f6 {[%clk 0:00:14.9]} 27. Ne4 {[%clk 0:00:54.6]} 27... Kf7 {[%clk
0:00:11.2]} 28. Nxf6 {[%clk 0:00:55]} 28... Rxd6 {[%clk 0:00:08.2]} 29. Nxe8
{[%clk 0:00:52.3]} 29... Re6 {[%clk 0:00:07.1]} 30. Nd6+ {[%clk 0:00:51.4]}
30... Kg7 {[%clk 0:00:05.8]} 31. f4 {[%clk 0:00:50]} 31... Re7 {[%clk
0:00:05.6]} 32. Rd2 {[%clk 0:00:45.6]} 32... b6 {[%clk 0:00:05]} 33. Ne4 {[%clk
0:00:43.9]} 33... Ra7 {[%clk 0:00:05.3]} 34. Rbd1 {[%clk 0:00:44.1]} 34... Rd7
{[%clk 0:00:04.3]} 35. Nf2 {[%clk 0:00:32.9]} 1-0

[Event "*** Titled Tuesday Blitz"]
[Site "Chess.com"]
[Date "2019.02.05"]
[Round "1"]
[White "monalize"]
[Black "Ellaijio_B"]
[Result "0-1"]
[WhiteElo "2295"]
[BlackElo "2652"]
[TimeControl "180+2"]
[EndTime "13:08:06 PST"]
[Termination "Ellaijio_B won by resignation"]

1. e4 {[%clk 0:03:00.5]} 1... c5 {[%clk 0:03:00.8]} 2. Nf3 {[%clk 0:03:00.5]}
2... e6 {[%clk 0:03:02.2]} 3. d4 {[%clk 0:02:59.7]} 3... cxd4 {[%clk 0:03:04.1]}
4. Nxd4 {[%clk 0:03:00.7]} 4... a6 {[%clk 0:03:05.6]} 5. Bd3 {[%clk 0:03:01]}
5... Bc5 {[%clk 0:03:06.3]} 6. Nb3 {[%clk 0:03:01.1]} 6... Be7 {[%clk
0:03:07.8]} 7. Qg4 {[%clk 0:03:01.9]} 7... g6 {[%clk 0:03:08.7]} 8. Nc3 {[%clk
0:03:00.4]} 8... d6 {[%clk 0:03:07.9]} 9. h4 {[%clk 0:02:59.1]} 9... Nf6 {[%clk
0:03:07.5]} 10. Qf3 {[%clk 0:02:58.7]} 10... h5 {[%clk 0:03:05.9]} 11. Bg5
{[%clk 0:02:58.6]} 11... Nbd7 {[%clk 0:03:04]} 12. O-O-O {[%clk 0:02:58.6]}
12... Ne5 {[%clk 0:03:02.3]} 13. Qe2 {[%clk 0:02:59.4]} 13... Bd7 {[%clk
0:02:49.3]} 14. f4 {[%clk 0:02:58.8]} 14... Nxd3+ {[%clk 0:02:48.3]} 15. Qxd3
{[%clk 0:02:59.3]} 15... Ng4 {[%clk 0:02:44.4]} 16. Bxe7 {[%clk 0:02:58.5]}
16... Qxe7 {[%clk 0:02:45.6]} 17. Rd2 {[%clk 0:02:59.6]} 17... Bc6 {[%clk
0:02:32.1]} 18. Qxd6 {[%clk 0:02:59.5]} 18... Qxd6 {[%clk 0:02:28.2]} 19. Rxd6
{[%clk 0:03:00.3]} 19... Ke7 {[%clk 0:02:24.2]} 20. Rd2 {[%clk 0:03:00.8]} 20...
Rac8 {[%clk 0:02:13.8]} 21. Re1 {[%clk 0:02:59.5]} 21... b5 {[%clk 0:02:09.8]}
22. Nd4 {[%clk 0:02:59.7]} 22... Bb7 {[%clk 0:02:08.1]} 23. e5 {[%clk
0:02:56.9]} 23... Rc4 {[%clk 0:01:55]} 24. Ne4 {[%clk 0:02:55.1]} 24... Bxe4
{[%clk 0:01:48.6]} 25. Rxe4 {[%clk 0:02:55.2]} 25... Rhc8 {[%clk 0:01:49.5]} 26.
Ree2 {[%clk 0:02:46.2]} 26... b4 {[%clk 0:01:36.9]} 27. Kd1 {[%clk 0:02:46.6]}
27... a5 {[%clk 0:01:37.1]} 28. Nb5 {[%clk 0:02:45.9]} 28... Rxf4 {[%clk
0:01:31.4]} 29. Nd6 {[%clk 0:02:46.1]} 29... Rc5 {[%clk 0:01:22.4]} 30. Ke1
{[%clk 0:02:46.4]} 30... Rxe5 {[%clk 0:01:08.9]} 31. Rxe5 {[%clk 0:02:45.7]}
31... Nxe5 {[%clk 0:01:09.7]} 32. Nc8+ {[%clk 0:02:46.6]} 32... Kf6 {[%clk
0:01:10.5]} 33. g3 {[%clk 0:02:47.3]} 33... Rc4 {[%clk 0:01:04.7]} 34. Rf2+
{[%clk 0:02:45.9]} 34... Kg7 {[%clk 0:01:03.2]} 35. Nd6 {[%clk 0:02:43.8]} 35...
Rd4 {[%clk 0:01:01.1]} 36. Ne8+ {[%clk 0:02:43.3]} 36... Kf8 {[%clk 0:01:02.1]}
37. Nf6 {[%clk 0:02:42.7]} 37... Ke7 {[%clk 0:00:57.9]} 38. Ng8+ {[%clk
0:02:42.9]} 38... Kd6 {[%clk 0:00:54.4]} 39. Nf6 {[%clk 0:02:43.3]} 39... Ke7
{[%clk 0:00:47.2]} 40. Ng8+ {[%clk 0:02:43.2]} 40... Kf8 {[%clk 0:00:48.8]} 41.
Nf6 {[%clk 0:02:44.1]} 41... a4 {[%clk 0:00:48.3]} 42. b3 {[%clk 0:02:44]} 42...
a3 {[%clk 0:00:48.5]} 43. Rf4 {[%clk 0:02:40]} 43... Rxf4 {[%clk 0:00:32.1]} 44.
gxf4 {[%clk 0:02:40.1]} 44... Nf3+ {[%clk 0:00:33.7]} 45. Kf2 {[%clk 0:02:39.4]}
45... Nxh4 {[%clk 0:00:35.6]} 46. Nd7+ {[%clk 0:02:39.2]} 46... Ke7 {[%clk
0:00:35.9]} 47. Nc5 {[%clk 0:02:40.3]} 47... Nf5 {[%clk 0:00:36.2]} 48. Nd3
{[%clk 0:02:40.5]} 48... Kd6 {[%clk 0:00:30.7]} 49. Nxb4 {[%clk 0:02:41.1]}
49... Kc5 {[%clk 0:00:32.4]} 50. c3 {[%clk 0:02:42.2]} 50... Nd6 {[%clk
0:00:29.4]} 51. Kf3 {[%clk 0:02:41.1]} 51... Nb5 {[%clk 0:00:30.5]} 52. Nd3+
{[%clk 0:02:40.7]} 52... Kd6 {[%clk 0:00:30.4]} 53. c4 {[%clk 0:02:41.8]} 53...
Nc3 {[%clk 0:00:30.6]} 54. Nb4 {[%clk 0:02:41.8]} 54... Kc5 {[%clk 0:00:29.6]}
55. Nc2 {[%clk 0:02:40.1]} 55... Nxa2 {[%clk 0:00:28.9]} 56. Nxa3 {[%clk
0:02:40.7]} 56... Nc1 {[%clk 0:00:30.3]} 57. Nb5 {[%clk 0:02:39.4]} 57... Nxb3
{[%clk 0:00:31]} 58. Nc7 {[%clk 0:02:40.2]} 58... Kxc4 {[%clk 0:00:30]} 59. Ne8
{[%clk 0:02:41.3]} 59... Kd5 {[%clk 0:00:29.7]} 60. Ng7 {[%clk 0:02:41.8]} 60...
Nd4+ {[%clk 0:00:30]} 61. Ke3 {[%clk 0:02:42.1]} 61... Nf5+ {[%clk 0:00:31.2]}
62. Nxf5 {[%clk 0:02:42.9]} 62... exf5 {[%clk 0:00:33.1]} 63. Kf3 {[%clk
0:02:44.2]} 63... Kd4 {[%clk 0:00:34.7]} 64. Kg3 {[%clk 0:02:45.3]} 64... Ke3
{[%clk 0:00:36.1]} 65. Kh4 {[%clk 0:02:46.2]} 65... Kxf4 {[%clk 0:00:37.7]} 66.
Kh3 {[%clk 0:02:47.2]} 66... g5 {[%clk 0:00:39.2]} 67. Kg2 {[%clk 0:02:47.8]}
67... Ke3 {[%clk 0:00:40.6]} 68. Kh3 {[%clk 0:02:49.2]} 68... f4 {[%clk
0:00:41.8]} 69. Kh2 {[%clk 0:02:49.9]} 69... f3 {[%clk 0:00:41.7]} 70. Kg3
{[%clk 0:02:50.5]} 70... f2 {[%clk 0:00:42.3]} 71. Kg2 {[%clk 0:02:51.1]} 71...
Ke2 {[%clk 0:00:43.7]} 72. Kg3 {[%clk 0:02:52.1]} 72... f1=Q {[%clk 0:00:44.4]}
73. Kh2 {[%clk 0:02:52.3]} 73... Qf4+ {[%clk 0:00:45.3]} 74. Kg2 {[%clk
0:02:52.3]} 74... Qg4+ {[%clk 0:00:46.4]} 0-1

[Event "*** Titled Tuesday Blitz"]
[Site "Chess.com"]
[Date "2019.02.05"]
[Round "1"]
[White "flomarechot"]
[Black "x-3738459472"]
[Result "0-1"]
[WhiteElo "2054"]
[BlackElo "2500"]
[TimeControl "180+2"]
[EndTime "13:08:07 PST"]
[Termination "x-3738459472 won by resignation"]

1. d4 {[%clk 0:02:59.3]} 1... Nf6 {[%clk 0:02:59]} 2. c4 {[%clk 0:03:00.5]} 2...
c5 {[%clk 0:03:00]} 3. d5 {[%clk 0:03:01.7]} 3... e5 {[%clk 0:03:00.8]} 4. Nc3
{[%clk 0:03:01.2]} 4... d6 {[%clk 0:03:01.8]} 5. e4 {[%clk 0:03:00.5]} 5... Be7
{[%clk 0:03:00.8]} 6. Be2 {[%clk 0:03:01.8]} 6... Nbd7 {[%clk 0:03:01.9]} 7. Nf3
{[%clk 0:03:02.7]} 7... Nf8 {[%clk 0:03:02.7]} 8. O-O {[%clk 0:03:02.9]} 8...
Ng6 {[%clk 0:03:04.2]} 9. a3 {[%clk 0:02:59.5]} 9... h5 {[%clk 0:03:05.7]} 10.
b4 {[%clk 0:03:00]} 10... b6 {[%clk 0:03:06.9]} 11. Bg5 {[%clk 0:02:17.3]} 11...
h4 {[%clk 0:03:05.7]} 12. Qd2 {[%clk 0:01:50.7]} 12... Nh5 {[%clk 0:03:04.1]}
13. Bxe7 {[%clk 0:01:41.5]} 13... Qxe7 {[%clk 0:02:46.2]} 14. Qg5 {[%clk
0:01:42.6]} 14... Nhf4 {[%clk 0:02:42.5]} 15. Qxe7+ {[%clk 0:01:43.1]} 15...
Kxe7 {[%clk 0:02:43.2]} 16. Rfe1 {[%clk 0:01:42.5]} 16... Bg4 {[%clk 0:02:35]}
17. Rab1 {[%clk 0:01:37.5]} 17... Nxe2+ {[%clk 0:02:34.8]} 18. Nxe2 {[%clk
0:01:36.7]} 18... Bxf3 {[%clk 0:02:36.2]} 19. gxf3 {[%clk 0:01:38.4]} 19... cxb4
{[%clk 0:02:33.1]} 20. axb4 {[%clk 0:01:39.1]} 20... Rac8 {[%clk 0:02:34]} 21.
Ra1 {[%clk 0:01:35.2]} 21... Rc7 {[%clk 0:02:32.3]} 22. Rec1 {[%clk 0:01:35.7]}
22... h3 {[%clk 0:02:30.4]} 23. Kf1 {[%clk 0:01:16.3]} 23... Rhc8 {[%clk
0:02:12.8]} 24. Ng3 {[%clk 0:01:00.2]} 24... Nh4 {[%clk 0:01:46.9]} 25. Ke2
{[%clk 0:01:00.8]} 25... Kf6 {[%clk 0:01:47.3]} 26. Nh5+ {[%clk 0:00:58.4]}
26... Kg6 {[%clk 0:01:46.4]} 27. Ng3 {[%clk 0:00:55]} 27... Ng2 {[%clk
0:01:41.4]} 28. Nf5 {[%clk 0:00:52.9]} 28... Nf4+ {[%clk 0:01:41.8]} 29. Kd2
{[%clk 0:00:53.7]} 29... Rd7 {[%clk 0:01:33.4]} 30. Rg1+ {[%clk 0:00:53.6]}
30... Ng2 {[%clk 0:01:30.8]} 31. Nh4+ {[%clk 0:00:54.8]} 31... Kf6 {[%clk
0:01:31.1]} 32. Nxg2 {[%clk 0:00:56]} 32... hxg2 {[%clk 0:01:32.5]} 33. Kd3
{[%clk 0:00:56.8]} 33... Rdc7 {[%clk 0:01:32.9]} 34. Rac1 {[%clk 0:00:57.9]}
34... b5 {[%clk 0:01:27.2]} 35. c5 {[%clk 0:00:58.2]} 35... dxc5 {[%clk
0:01:28.8]} 36. bxc5 {[%clk 0:00:59.2]} 36... Rxc5 {[%clk 0:01:29.7]} 37. Rxc5
{[%clk 0:01:00.8]} 37... Rxc5 {[%clk 0:01:31]} 38. Rxg2 {[%clk 0:01:02.4]} 38...
b4 {[%clk 0:01:31.4]} 39. Rg1 {[%clk 0:01:03.3]} 39... a5 {[%clk 0:01:32.7]} 40.
h4 {[%clk 0:01:02.6]} 40... a4 {[%clk 0:01:32.5]} 41. Ra1 {[%clk 0:01:00.6]}
41... a3 {[%clk 0:01:31.9]} 42. h5 {[%clk 0:01:01.1]} 42... Rc3+ {[%clk
0:01:28.5]} 43. Kd2 {[%clk 0:00:54.3]} 43... Rxf3 {[%clk 0:01:27.5]} 44. Kc2
{[%clk 0:00:44.4]} 44... b3+ {[%clk 0:01:25.4]} 45. Kd2 {[%clk 0:00:44.1]} 45...
b2 {[%clk 0:01:25.7]} 46. Rh1 {[%clk 0:00:26.6]} 46... a2 {[%clk 0:01:23.8]} 47.
h6 {[%clk 0:00:28.1]} 47... gxh6 {[%clk 0:01:22.9]} 48. Rxh6+ {[%clk 0:00:28.3]}
48... Kg7 {[%clk 0:01:23.6]} 49. d6 {[%clk 0:00:29]} 49... b1=Q {[%clk
0:01:23.9]} 50. d7 {[%clk 0:00:29.8]} 50... Rd3+ {[%clk 0:01:24]} 0-1

[Event "*** Titled Tuesday Blitz"]
[Site "Chess.com"]
[Date "2019.02.05"]
[Round "1"]
[White "Kumi29"]
[Black "hurricane7791"]
[Result "0-1"]
[WhiteElo "2301"]
[BlackElo "2680"]
[TimeControl "180+2"]
[EndTime "13:08:14 PST"]
[Termination "hurricane7791 won by resignation"]

1. d4 {[%clk 0:03:01.9]} 1... Nf6 {[%clk 0:03:00.7]} 2. Bg5 {[%clk 0:03:03]}
2... d5 {[%clk 0:03:00.4]} 3. e3 {[%clk 0:03:03.7]} 3... e6 {[%clk 0:02:59.2]}
4. Bd3 {[%clk 0:03:04.1]} 4... Be7 {[%clk 0:02:59.5]} 5. Nd2 {[%clk 0:03:03.9]}
5... b6 {[%clk 0:03:00.7]} 6. c3 {[%clk 0:03:00.4]} 6... Bb7 {[%clk 0:03:01.8]}
7. f4 {[%clk 0:03:00.8]} 7... Ne4 {[%clk 0:03:00.6]} 8. Bxe7 {[%clk 0:03:00.3]}
8... Qxe7 {[%clk 0:03:02.5]} 9. Ngf3 {[%clk 0:02:59.9]} 9... Nd7 {[%clk
0:03:01.4]} 10. O-O {[%clk 0:03:00.3]} 10... O-O {[%clk 0:03:00.2]} 11. Qc2
{[%clk 0:02:50.4]} 11... f5 {[%clk 0:03:00.6]} 12. Ne5 {[%clk 0:02:51.7]} 12...
Nxe5 {[%clk 0:03:01.4]} 13. fxe5 {[%clk 0:02:51.1]} 13... c5 {[%clk 0:03:00.4]}
14. Bxe4 {[%clk 0:02:25.5]} 14... fxe4 {[%clk 0:02:58.7]} 15. Qd1 {[%clk
0:01:59.9]} 15... Ba6 {[%clk 0:02:57.4]} 16. Rxf8+ {[%clk 0:01:58.5]} 16... Rxf8
{[%clk 0:02:59.3]} 17. Qg4 {[%clk 0:01:57.6]} 17... Bd3 {[%clk 0:02:57.7]} 18.
h3 {[%clk 0:01:54.3]} 18... Rf5 {[%clk 0:02:56.9]} 19. Nf1 {[%clk 0:01:51.5]}
19... h5 {[%clk 0:02:54.3]} 20. Qg3 {[%clk 0:01:42.3]} 20... h4 {[%clk
0:02:44.8]} 21. Qg4 {[%clk 0:01:30.8]} 21... Rg5 {[%clk 0:02:45.7]} 22. Qd1
{[%clk 0:01:31.7]} 22... Rf5 {[%clk 0:02:43.9]} 23. Qg4 {[%clk 0:01:32.1]} 23...
c4 {[%clk 0:02:29.5]} 24. Nh2 {[%clk 0:01:29.4]} 24... b5 {[%clk 0:02:29.9]} 25.
a3 {[%clk 0:01:28.3]} 25... a5 {[%clk 0:02:30.9]} 26. Qd1 {[%clk 0:01:13.1]}
26... Qg5 {[%clk 0:02:31.1]} 27. Ng4 {[%clk 0:01:13.1]} 27... Rf8 {[%clk
0:02:32.4]} 28. Qe1 {[%clk 0:01:07.3]} 28... Rb8 {[%clk 0:02:32.8]} 29. Rd1
{[%clk 0:01:06.9]} 29... Qe7 {[%clk 0:02:30.8]} 30. Rd2 {[%clk 0:01:05.8]} 30...
b4 {[%clk 0:02:31.6]} 31. axb4 {[%clk 0:01:05.9]} 31... axb4 {[%clk 0:02:33.5]}
32. Rf2 {[%clk 0:01:06.1]} 32... bxc3 {[%clk 0:02:34.4]} 33. Qxc3 {[%clk
0:01:07.2]} 33... Qa7 {[%clk 0:02:30.6]} 34. Kh2 {[%clk 0:01:05.2]} 34... Qa1
{[%clk 0:02:18.8]} 35. Qd2 {[%clk 0:00:46]} 35... Rb3 {[%clk 0:02:09]} 36. g3
{[%clk 0:00:30.5]} 36... hxg3+ {[%clk 0:02:07.5]} 37. Kxg3 {[%clk 0:00:32.4]}
37... Rb8 {[%clk 0:02:02.7]} 38. Kh4 {[%clk 0:00:31.9]} 38... Qa7 {[%clk
0:01:59.6]} 39. Kg3 {[%clk 0:00:31.7]} 39... Qe7 {[%clk 0:01:57.9]} 40. Rg2
{[%clk 0:00:32.1]} 40... Rf8 {[%clk 0:01:58]} 41. Kh2 {[%clk 0:00:32.9]} 41...
Qh4 {[%clk 0:01:53.5]} 42. Qb4 {[%clk 0:00:29.2]} 42... Bf1 {[%clk 0:01:24.9]}
43. Nf6+ {[%clk 0:00:20.5]} 43... Rxf6 {[%clk 0:01:25.1]} 44. exf6 {[%clk
0:00:21.9]} 44... Bxg2 {[%clk 0:01:26.2]} 45. Qb8+ {[%clk 0:00:19.3]} 45... Kh7
{[%clk 0:01:26.9]} 46. Kxg2 {[%clk 0:00:17]} 46... Qxf6 {[%clk 0:01:27.8]} 47.
Qe8 {[%clk 0:00:16.7]} 47... Qg6+ {[%clk 0:01:22.9]} 48. Qxg6+ {[%clk
0:00:17.9]} 48... Kxg6 {[%clk 0:01:24.8]} 49. Kg3 {[%clk 0:00:19.2]} 49... Kg5
{[%clk 0:01:25.6]} 50. h4+ {[%clk 0:00:20.1]} 50... Kf5 {[%clk 0:01:27.1]} 51.
Kh3 {[%clk 0:00:17.5]} 51... e5 {[%clk 0:01:28.2]} 52. Kg3 {[%clk 0:00:19]}
52... exd4 {[%clk 0:01:29]} 53. exd4 {[%clk 0:00:20.9]} 53... g6 {[%clk
0:01:29.6]} 0-1